fUST/lending_fUST_20240525
["ID","MTS","AMOUNT","RATE_DAILY","PERIOD"]
[327872902,1716569442904,-659.61,0.00026301,8]
[327872903,1716569442913,-500.0,0.00026301,8]
[327872904,1716569442921,-500.0,0.00026301,8]
[327872905,1716569442930,-500.0,0.00026301,8]
[327872906,1716569442939,-611.21,0.00026301,8]
[327872907,1716569442947,-500.0,0.00026301,8]
[327872908,1716569442956,-500.0,0.00026301,8]
[327872909,1716569442965,-1270.07,0.00026301,8]
[327872910,1716569442974,-500.0,0.00026301,8]
[327872911,1716569442983,-500.0,0.00026301,8]
[327872912,1716569442992,-500.0,0.00026301,8]
[327872913,1716569443001,-500.0,0.00026301,8]
[327872914,1716569443010,-500.0,0.00026301,8]
[327872915,1716569443019,-500.0,0.00026301,8]
[327872916,1716569443027,-1305.22,0.00026301,8]
[327872917,1716569443036,-531.75,0.00026301,8]
[327872918,1716569443045,-3904.99,0.00026301,8]
[327872919,1716569443054,-500.0,0.00026301,8]
[327872920,1716569443064,-500.0,0.00026301,8]
[327872921,1716569443073,-764.21,0.00026301,8]
[327872922,1716569443082,-1357.82,0.00026301,8]
[327872923,1716569443091,-4440.74,0.00026301,8]
[327872924,1716569443100,-610.84,0.00026301,8]
[327872925,1716569443109,-528.41,0.00026301,8]
[327872926,1716569443118,-500.0,0.00026301,8]
[327872927,1716569443127,-500.0,0.00026301,8]
[327872928,1716569443136,-2441.97,0.00026301,8]
[327872929,1716569443146,-500.0,0.00026301,8]
[327872930,1716569443156,-500.0,0.00026301,8]
[327872931,1716569443164,-552.32,0.00026301,8]
[327872932,1716569443174,-3651.74,0.00026301,8]
[327872933,1716569443183,-419.099999,0.000264,2]
[327872938,1716569443310,-12759.97,0.00026574,16]
[327872940,1716569443322,-500.0,0.00026575,9]
[327872942,1716569443332,-500.0,0.00026575,9]
[327872943,1716569443341,-500.0,0.00026575,9]
[327872945,1716569443350,-500.0,0.00026575,9]
[327872946,1716569443359,-500.0,0.00026575,9]
[327872947,1716569443368,-562.92,0.00026575,9]
[327872948,1716569443377,-506.76,0.00026575,9]
[327872949,1716569443386,-500.0,0.00026575,9]
[327872950,1716569443397,-500.0,0.00026575,9]
[327872951,1716569443406,-500.0,0.00026575,9]
[327872952,1716569443416,-500.0,0.00026575,9]
[327872953,1716569443425,-659.61,0.00026575,9]
[327872954,1716569443434,-500.0,0.00026575,9]
[327872955,1716569443443,-500.0,0.00026575,9]
[327872956,1716569443452,-500.0,0.00026575,9]
[327872957,1716569443461,-611.21,0.00026575,9]
[327872958,1716569443471,-500.0,0.00026575,9]
[327872959,1716569443480,-500.0,0.00026575,9]
[327872960,1716569443490,-1270.07,0.00026575,9]
[327872961,1716569443499,-500.0,0.00026575,9]
[327872962,1716569443508,-500.0,0.00026575,9]
[327872963,1716569443518,-500.0,0.00026575,9]
[327872964,1716569443528,-500.0,0.00026575,9]
[327872965,1716569443538,-500.0,0.00026575,9]
[327872966,1716569443546,-500.0,0.00026575,9]
[327872967,1716569443556,-1305.22,0.00026575,9]
[327872968,1716569443565,-531.75,0.00026575,9]
[327872969,1716569443574,-3904.99,0.00026575,9]
[327872970,1716569443583,-500.0,0.00026575,9]
[327872971,1716569443592,-500.0,0.00026575,9]
[327872972,1716569443602,-764.21,0.00026575,9]
[327872973,1716569443611,-1357.82,0.00026575,9]
[327872974,1716569443621,-4440.74,0.00026575,9]
[327872975,1716569443631,-610.84,0.00026575,9]
[327872976,1716569443641,-528.41,0.00026575,9]
[327872977,1716569443652,-500.0,0.00026575,9]
[327872978,1716569443661,-500.0,0.00026575,9]
[327872979,1716569443671,-500.0,0.00026575,9]
[327872980,1716569443681,-2441.97,0.00026575,9]
[327872981,1716569443690,-500.0,0.00026575,9]
[327872982,1716569443704,-552.32,0.00026575,9]
[327872983,1716569443738,-428.27911,0.00026733,2]
[327872984,1716569443805,-500.0,0.00026849,10]
[327872985,1716569443941,-500.0,0.00026849,10]
[327872986,1716569444008,-500.0,0.00026849,10]
[327872988,1716569444122,-500.0,0.00026849,10]
[327872990,1716569444201,-500.0,0.00026849,10]
[327872992,1716569444304,-562.92,0.00026849,10]
[327872993,1716569444368,-506.76,0.00026849,10]
[327872994,1716569444382,-500.0,0.00026849,10]
[327872995,1716569444392,-570.66625838,0.00026849,10]
[327872996,1716569444402,-500.0,0.00026849,10]
[327872997,1716569444411,-500.0,0.00026849,10]
[327872998,1716569444421,-659.61,0.00026849,10]
[327872999,1716569444431,-500.0,0.00026849,10]
[327873000,1716569444441,-500.0,0.00026849,10]
[327873001,1716569444452,-500.0,0.00026849,10]
[327873002,1716569444462,-611.21,0.00026849,10]
[327873003,1716569444472,-500.0,0.00026849,10]
[327873004,1716569444482,-500.0,0.00026849,10]
[327873005,1716569444492,-1270.07,0.00026849,10]
[327873006,1716569444501,-500.0,0.00026849,10]
[327873007,1716569444511,-500.0,0.00026849,10]
[327873008,1716569444521,-500.0,0.00026849,10]
[327873009,1716569444531,-500.0,0.00026849,10]
[327873010,1716569444540,-356.71097048,0.00026849,10]
[327873011,1716569444550,-500.0,0.00026849,10]
[327873012,1716569444559,-1305.22,0.00026849,10]
[327873013,1716569444569,-531.75,0.00026849,10]
[327873014,1716569444579,-3904.99,0.00026849,10]
[327873015,1716569444588,-500.0,0.00026849,10]
[327873016,1716569444599,-500.0,0.00026849,10]
[327873017,1716569444609,-764.21,0.00026849,10]
[327873018,1716569444619,-1357.82,0.00026849,10]
[327873019,1716569444628,-4440.74,0.00026849,10]
[327873020,1716569444637,-610.84,0.00026849,10]
[327873021,1716569444648,-528.41,0.00026849,10]
[327873022,1716569444658,-500.0,0.00026849,10]
[327873023,1716569444668,-500.0,0.00026849,10]
[327873024,1716569444677,-500.0,0.00026849,10]
[327873025,1716569444687,-2441.97,0.00026849,10]
[327873026,1716569444696,-500.0,0.00026849,10]
[327873027,1716569444706,-552.32,0.00026849,10]
[327873028,1716569444715,-306.0,0.00026849,2]
[327873029,1716569444725,-10186.69824215,0.00026989,17]
[327873030,1716569444906,-805.32512728,0.00026989,17]
[327873031,1716569445121,164.28156596,0.00019899,2]
[327873032,1716569445139,-500.0,0.00024657,2]
[327873033,1716569445148,-150.145,0.00025895,2]
[327873034,1716569445158,-3651.74,0.00026575,9]
[327873035,1716569445167,-1170.53945192,0.00026849,10]
[327873040,1716569446056,-279.75,0.00024657,2]
[327873041,1716569538179,175.6616625,0.00019822,2]
[327873042,1716569790770,1451.19368545,0.0002,10]
[327873043,1716569836917,190.06506775,0.000156,2]
[327873044,1716569890623,19264.17315278,0.000156,2]
[327873045,1716569894882,154.82968734,0.000156,2]
[327873046,1716569898792,299.64243626,0.000156,2]
[327873047,1716569902610,3957.44900302,0.000156,2]
[327873048,1716569902632,15306.72414976,0.000156,2]
[327873049,1716569916877,201.66131489,0.000156,2]
[327873050,1716569918621,19264.17315278,0.000156,2]
[327873051,1716569918792,299.64243626,0.000156,2]
[327873052,1716569934796,299.53558751,0.000156,2]
[327873053,1716569940640,15607.98778572,0.000156,2]
[327873056,1716570152456,733.4773594,9.999e-05,2]
[327873062,1716570326111,820.30862122,9.999e-05,2]
[327873076,1716570348122,-412.49312762,0.00017467,2]
[327873078,1716570369472,151.0,0.00026753,30]
[327873080,1716570393372,-320.98423178,0.00017467,2]
[327873081,1716570393396,-4581.38681114,0.00017468,2]
[327873083,1716570429131,-210.6351642,0.00017468,2]
[327873084,1716570432102,-1462.20956354,0.00017468,2]
[327873085,1716570433117,-164.28156596,0.00017369,2]
[327873086,1716570433138,-66.62528068,0.00017468,2]
[327873087,1716570434121,-380.03322361,0.00017468,2]
[327873088,1716570436106,-163.26944534,0.00017468,2]
[327873089,1716570437788,836.12249757,9.999e-05,2]
[327873090,1716570449098,-319.38087732,0.00017468,2]
[327873130,1716570524142,175.72514253,9.999e-05,2]
[327873131,1716570546121,-679.08257661,0.00017399,2]
[327873132,1716570550104,-54.39478279,0.00017399,2]
[327873133,1716570550127,-367.0074481,0.000174,2]
[327873134,1716570550149,-223.07296701,0.00017468,2]
[327873135,1716570550171,-1067.47162715,0.00017468,2]
[327873136,1716570550196,-226.2696189,0.00017468,2]
[327873137,1716570550223,-5187.0112633,0.00017469,2]
[327873138,1716570550246,-896.31216814,0.00018,2]
[327873139,1716570550269,-1894.87961524,0.00018315,2]
[327873140,1716570550293,-225.63783848,0.00018315,2]
[327873141,1716570550318,-691.7143485,0.00018315,2]
[327873142,1716570550340,-175.59977842,0.00018315,2]
[327873143,1716570550366,-3222.10045888,0.00018316,2]
[327873144,1716570550394,-3637.51857705,0.00018317,2]
[327873145,1716570552117,-40856.99916542,0.00018317,2]
[327873146,1716570552141,-835.58769821,0.00018318,2]
[327873147,1716570552163,-24900.0,0.00018319,2]
[327873148,1716570552186,-1014.79734309,0.0001832,2]
[327873149,1716570552209,-250.0,0.0001842,2]
[327873150,1716570552230,-214.139555,0.0001882,2]
[327873151,1716570552253,-271.605646,0.00019,2]
[327873152,1716570552278,-170.365438,0.00019178,2]
[327873153,1716570552303,-188.02744085,0.00019721,2]
[327873154,1716570552327,-285.88780231,0.00019818,2]
[327873155,1716570552353,-513.77409641,0.00019818,2]
[327873156,1716570552376,-441.68581033,0.00019819,2]
[327873157,1716570552401,-500.0,0.00019819,2]
[327873158,1716570552424,-500.0,0.00019819,2]
[327873159,1716570552448,-612.07286333,0.00019819,2]
[327873160,1716570552475,-679.20094333,0.00019819,2]
[327873161,1716570552497,-500.0,0.00019819,2]
[327873162,1716570552518,-155.88397074,0.00019819,2]
[327873163,1716570552753,-679.20094333,0.00019819,2]
[327873164,1716570552775,-235.0,0.00019819,2]
[327873165,1716570552797,-645.32778129,0.00019819,2]
[327873166,1716570552822,-679.20094333,0.00019819,2]
[327873167,1716570552846,-679.20094333,0.00019819,2]
[327873168,1716570552870,-679.20094333,0.00019819,2]
[327873169,1716570552894,-679.20094333,0.00019819,2]
[327873170,1716570552917,-679.20094333,0.00019819,2]
[327873171,1716570552942,-679.20094333,0.00019819,2]
[327873172,1716570552971,-679.20094333,0.00019819,2]
[327873173,1716570552996,-679.20094333,0.00019819,2]
[327873174,1716570553021,-679.20094333,0.00019819,2]
[327873175,1716570553048,-679.20094333,0.00019819,2]
[327873176,1716570553075,-679.20094333,0.00019819,2]
[327873177,1716570553099,-679.20094333,0.00019819,2]
[327873178,1716570553123,-679.20094333,0.00019819,2]
[327873179,1716570553148,-679.20094333,0.00019819,2]
[327873180,1716570553174,-679.20094333,0.00019819,2]
[327873181,1716570553198,-679.20094333,0.00019819,2]
[327873182,1716570553223,-679.20094333,0.00019819,2]
[327873183,1716570553249,-679.20094333,0.00019819,2]
[327873184,1716570553273,-679.20094333,0.00019819,2]
[327873185,1716570553298,-679.20094333,0.00019819,2]
[327873186,1716570553322,-679.20094333,0.00019819,2]
[327873187,1716570553349,-679.20094333,0.00019819,2]
[327873188,1716570553372,-679.20094333,0.00019819,2]
[327873189,1716570553396,-679.20094333,0.00019819,2]
[327873190,1716570553421,-679.20094333,0.00019819,2]
[327873191,1716570553446,-679.20094333,0.00019819,2]
[327873192,1716570553470,-679.20094333,0.00019819,2]
[327873193,1716570553494,-679.20094333,0.00019819,2]
[327873194,1716570553522,-679.20094333,0.00019819,2]
[327873195,1716570553545,-679.20094333,0.00019819,2]
[327873196,1716570553568,-679.20094333,0.00019819,2]
[327873197,1716570553591,-679.20094333,0.00019819,2]
[327873198,1716570553622,-679.20094333,0.00019819,2]
[327873199,1716570553646,-679.20094333,0.00019819,2]
[327873200,1716570553665,-262.31694142,0.00019819,2]
[327873201,1716570553688,-659.48220626,0.00019819,2]
[327873202,1716570553711,-659.48220626,0.00019819,2]
[327873203,1716570553734,-659.48220626,0.00019819,2]
[327873204,1716570553756,-659.48220626,0.00019819,2]
[327873205,1716570553780,-659.48220626,0.00019819,2]
[327873206,1716570553804,-659.48220626,0.00019819,2]
[327873207,1716570553827,-659.48220626,0.00019819,2]
[327873208,1716570553852,-659.48220626,0.00019819,2]
[327873209,1716570553876,-659.48220626,0.00019819,2]
[327873210,1716570553900,-659.48220626,0.00019819,2]
[327873211,1716570553924,-659.48220626,0.00019819,2]
[327873212,1716570553948,-659.48220626,0.00019819,2]
[327873213,1716570553971,-659.48220626,0.00019819,2]
[327873214,1716570553993,-659.48220626,0.00019819,2]
[327873215,1716570554018,-659.48220626,0.00019819,2]
[327873216,1716570554042,-659.48220626,0.00019819,2]
[327873217,1716570554066,-659.48220626,0.00019819,2]
[327873218,1716570554092,-659.48220626,0.00019819,2]
[327873219,1716570554117,-659.48220626,0.00019819,2]
[327873220,1716570554141,-659.48220626,0.00019819,2]
[327873221,1716570554164,-659.48220626,0.00019819,2]
[327873222,1716570554187,-659.48220626,0.00019819,2]
[327873223,1716570554211,-659.48220626,0.00019819,2]
[327873224,1716570554234,-637.49946605,0.00019819,2]
[327873225,1716570554258,-637.49946605,0.00019819,2]
[327873226,1716570554282,-637.49946605,0.00019819,2]
[327873227,1716570554308,-637.49946605,0.00019819,2]
[327873228,1716570554333,-637.49946605,0.00019819,2]
[327873229,1716570554359,-637.49946605,0.00019819,2]
[327873230,1716570554384,-637.49946605,0.00019819,2]
[327873231,1716570554410,-637.49946605,0.00019819,2]
[327873232,1716570554430,-772.36964669,0.0001982,2]
[327873233,1716570554450,-194.53180167,0.0001982,2]
[327873234,1716570554470,-281.67342529,0.0001982,2]
[327873235,1716570554490,-2775.654796,0.0001982,2]
[327873236,1716570554510,-307.68071387,0.0001982,2]
[327873237,1716570554529,-200.0,0.0001982,2]
[327873238,1716570554548,-156.56985226,0.0001982,2]
[327873239,1716570554568,-1904.92360209,0.0001982,2]
[327873240,1716570554587,-155.46521874,0.0001982,2]
[327873241,1716570554612,-2119.95126665,0.0001982,2]
[327873242,1716570554631,-190.8626778,0.0001982,2]
[327873243,1716570554653,-155.27339031,0.0001982,2]
[327873244,1716570554675,-3717.28812404,0.0001982,2]
[327873245,1716570554705,-6738.5470655,0.0001982,2]
[327873246,1716570554725,-946.38470941,0.0001982,2]
[327873247,1716570554744,-181.50612434,0.0001982,2]
[327873248,1716570554764,-4453.08756374,0.00019821,2]
[327873249,1716570554784,-3632.73611165,0.00019822,2]
[327873250,1716570557433,446.24962622,0.00019819,2]
[327873251,1716570571111,-305.05534358,0.00019999,2]
[327873252,1716570614435,24900.0,0.00019444,2]
[327873253,1716570616856,471.545185,0.0001938,2]
[327873254,1716570618519,733.4773594,0.00019443,2]
[327873286,1716570633125,-658.24540684,0.00019997,2]
[327873428,1716570637751,250.0,0.0001938,2]
[327873456,1716570638839,-238.0667613,0.00019997,2]
[327873458,1716570638849,-371.29108321,0.00019998,2]
[327873460,1716570638859,-733.4773594,0.00019998,2]
[327873462,1716570638869,-3375.14983584,0.00019999,2]
[327873464,1716570638878,-22859.27879206,0.0002,2]
[327873466,1716570638888,-189.49453315,0.0002,4]
[327873468,1716570638898,-783.32549456,0.0002,2]
[327873469,1716570638907,-155.45791053,0.0002,2]
[327873471,1716570638920,-658.24540684,0.00020284,2]
[327873473,1716570638929,-353.929026,0.00020554,2]
[327873475,1716570638939,-186.98085169,0.0002091,2]
[327873477,1716570638949,-230.90684664,0.0002091,2]
[327873479,1716570638959,-604.85735798,0.00021,2]
[327873481,1716570638969,-156.36220121,0.00022,2]
[327873483,1716570638978,-1398.08035328,0.00022,2]
[327873485,1716570638988,-159.73051569,0.00022,2]
[327873487,1716570638997,-151.0,0.000238,5]
[327873489,1716570639007,-171.2663854,0.00023838,2]
[327873491,1716570639016,-1014.79734305,0.00024221,2]
[327873493,1716570639026,-151.0,0.00024353,5]
[327873494,1716570639036,-711.729746,0.00024384,2]
[327873496,1716570639046,-193.06465483,0.00024475,2]
[327873498,1716570639056,-2000.0,0.00024557,2]
[327873500,1716570639066,-281.09313032,0.00024656,2]
[327873502,1716570639076,-493.59833438,0.00024656,2]
[327873504,1716570639086,-500.0,0.00024656,2]
[327873506,1716570639096,-500.0,0.00024656,2]
[327873508,1716570639105,-500.0,0.00024656,2]
[327873510,1716570639116,-500.0,0.00024656,2]
[327873512,1716570639126,-500.0,0.00024656,2]
[327873513,1716570639136,-500.0,0.00024656,2]
[327873515,1716570639146,-500.0,0.00024656,2]
[327873517,1716570639157,-500.0,0.00024656,2]
[327873519,1716570639169,-500.0,0.00024656,2]
[327873521,1716570639179,-500.0,0.00024656,2]
[327873523,1716570639190,-500.0,0.00024656,2]
[327873525,1716570639199,-500.0,0.00024656,2]
[327873527,1716570639210,-500.0,0.00024656,2]
[327873529,1716570639219,-500.0,0.00024656,2]
[327873530,1716570639229,-500.0,0.00024656,2]
[327873532,1716570639239,-500.0,0.00024656,2]
[327873534,1716570639249,-500.0,0.00024656,2]
[327873536,1716570639259,-500.0,0.00024656,2]
[327873538,1716570639270,-500.0,0.00024656,2]
[327873540,1716570639281,-500.0,0.00024656,2]
[327873542,1716570639292,-428.16699195,0.00024656,2]
[327873556,1716570639458,-500.0,0.00024656,2]
[327873557,1716570639468,-500.0,0.00024656,2]
[327873558,1716570639477,-500.0,0.00024656,2]
[327873559,1716570639487,-500.0,0.00024656,2]
[327873560,1716570639496,-2616.85266318,0.00024657,11]
[327873561,1716570639506,-3980.75777852,0.00024657,2]
[327873562,1716570639515,-500.0,0.00024657,2]
[327873563,1716570639524,-374.07,0.00024657,2]
[327873564,1716570639533,-500.0,0.00024657,2]
[327873565,1716570639542,-250.0,0.00024657,2]
[327873566,1716570639550,-500.0,0.00024657,2]
[327873567,1716570639559,-500.0,0.00024657,2]
[327873568,1716570639568,-500.0,0.00024657,2]
[327873569,1716570639577,-500.0,0.00024657,2]
[327873570,1716570639586,-411.41879607,0.00024657,2]
[327873571,1716570639596,-500.0,0.00024657,2]
[327873572,1716570639605,-500.0,0.00024657,2]
[327873573,1716570639614,-500.0,0.00024657,2]
[327873574,1716570639625,-500.0,0.00024657,2]
[327873575,1716570639636,-500.0,0.00024657,2]
[327873577,1716570639646,-500.0,0.00024657,2]
[327873578,1716570639655,-500.0,0.00024657,2]
[327873580,1716570639667,-500.0,0.00024657,2]
[327873582,1716570639676,-500.0,0.00024657,2]
[327873584,1716570639685,-538.86,0.00024657,2]
[327873586,1716570639694,-500.0,0.00024657,2]
[327873588,1716570639704,-500.0,0.00024657,2]
[327873590,1716570639716,-500.0,0.00024657,2]
[327873592,1716570639725,-500.0,0.00024657,2]
[327873594,1716570639735,-690.75,0.00024657,2]
[327873596,1716570639744,-500.0,0.00024657,2]
[327873598,1716570639754,-500.0,0.00024657,2]
[327873600,1716570639763,-537.28,0.00024657,2]
[327873602,1716570639772,-500.0,0.00024657,2]
[327873604,1716570639781,-500.0,0.00024657,2]
[327873606,1716570639790,-500.0,0.00024657,2]
[327873607,1716570639800,-500.0,0.00024657,2]
[327873610,1716570639809,-500.0,0.00024657,2]
[327873611,1716570639819,-500.0,0.00024657,2]
[327873613,1716570639828,-500.0,0.00024657,2]
[327873615,1716570639837,-982.83283276,0.00024657,2]
[327873617,1716570639847,-516.15,0.00024657,2]
[327873619,1716570639856,-500.0,0.00024657,2]
[327873620,1716570639866,-500.0,0.00024657,2]
[327873621,1716570639876,-500.0,0.00024657,2]
[327873622,1716570639885,-658.3,0.00024657,2]
[327873623,1716570639895,-500.0,0.00024657,2]
[327873624,1716570639905,-500.0,0.00024657,2]
[327873625,1716570639916,-500.0,0.00024657,2]
[327873626,1716570639925,-184.14171532,0.00024657,2]
[327873627,1716570639934,-595.96641044,0.00024657,2]
[327873628,1716570639944,-500.0,0.00024657,2]
[327873629,1716570639953,-2496.15,0.00024657,2]
[327873630,1716570639962,-500.0,0.00024657,2]
[327873632,1716570639972,-500.0,0.00024657,2]
[327873634,1716570639983,-500.0,0.00024657,2]
[327873636,1716570639993,-500.0,0.00024657,2]
[327873638,1716570640003,-500.0,0.00024657,2]
[327873640,1716570640013,-187.90474041,0.00024657,2]
[327873642,1716570640024,-500.0,0.00024657,2]
[327873644,1716570640033,-697.43,0.00024657,2]
[327873645,1716570640045,-500.0,0.00024657,2]
[327873646,1716570640055,-530.55092115,0.00024657,3]
[327873647,1716570640064,-500.0,0.00024657,2]
[327873648,1716570640074,-3464.55,0.00024657,2]
[327873649,1716570640084,-500.0,0.00024657,2]
[327873650,1716570640093,-500.0,0.00024657,2]
[327873651,1716570640103,-500.0,0.00024657,2]
[327873652,1716570640114,-11822.26,0.00024657,2]
[327873653,1716570640123,-11822.26,0.00024657,3]
[327873654,1716570640132,-11822.26,0.00024657,4]
[327873655,1716570640142,-11822.26,0.00024657,5]
[327873656,1716570640152,-11822.26,0.00024657,6]
[327873657,1716570640161,-532.79,0.00024657,2]
[327873658,1716570640171,-11822.26,0.00024657,7]
[327873659,1716570640181,-500.0,0.00024657,2]
[327873660,1716570640191,-500.0,0.00024657,2]
[327873661,1716570640201,-594.31,0.00024657,2]
[327873662,1716570640211,-500.0,0.00024657,2]
[327873663,1716570640221,-1302.28,0.00024657,2]
[327873664,1716570640233,-500.0,0.00024657,2]
[327873665,1716570640243,-500.0,0.00024657,2]
[327873666,1716570640252,-500.0,0.00024657,2]
[327873667,1716570640262,-598.12,0.00024657,2]
[327873668,1716570640272,-500.0,0.00024657,2]
[327873669,1716570640282,-500.0,0.00024657,2]
[327873670,1716570640292,-500.0,0.00024657,2]
[327873671,1716570640301,-1380.52,0.00024657,2]
[327873672,1716570640311,-500.0,0.00024657,2]
[327873673,1716570640320,-500.0,0.00024657,2]
[327873674,1716570640330,-500.0,0.00024657,2]
[327873675,1716570640340,-719.24,0.00024657,2]
[327873676,1716570640349,-594.85,0.00024657,2]
[327873677,1716570640358,-500.0,0.00024657,2]
[327873678,1716570640368,-500.0,0.00024657,3]
[327873679,1716570640377,-500.0,0.00024657,3]
[327873680,1716570640386,-570.15,0.00024657,3]
[327873681,1716570640396,-638.39,0.00024657,2]
[327873682,1716570640405,-500.0,0.00024657,2]
[327873683,1716570640415,-804.24,0.00024657,2]
[327873684,1716570640424,-620.81,0.00024657,2]
[327873685,1716570640433,-4524.79,0.00024657,2]
[327873686,1716570640443,-500.0,0.00024657,2]
[327873687,1716570640453,-500.0,0.00024657,2]
[327873688,1716570640462,-500.0,0.00024657,2]
[327873689,1716570640472,-500.0,0.00024657,2]
[327873690,1716570640481,-1443.12,0.00024657,2]
[327873691,1716570640491,-500.0,0.00024657,2]
[327873692,1716570640500,-500.0,0.00024657,2]
[327873693,1716570640509,-500.0,0.00024657,2]
[327873694,1716570640519,-500.0,0.00024657,2]
[327873695,1716570640528,-500.0,0.00024657,2]
[327873696,1716570640538,-500.0,0.00024657,2]
[327873698,1716570640547,-500.0,0.00024657,2]
[327873700,1716570640557,-500.0,0.00024657,2]
[327873702,1716570640567,-500.0,0.00024657,2]
[327873704,1716570640576,-500.0,0.00024657,2]
[327873706,1716570640586,-500.0,0.00024657,2]
[327873708,1716570640596,-500.0,0.00024657,2]
[327873709,1716570640605,-505.59807746,0.00024657,2]
[327873710,1716570640615,-500.0,0.00024657,2]
[327873711,1716570640628,-500.0,0.00024657,2]
[327873712,1716570640639,-527.48,0.00024657,2]
[327873713,1716570640649,-188.02744085,0.00024831,2]
[327873714,1716570640659,-151.0,0.00024905,5]
[327873715,1716570640672,-11822.26,0.0002493,8]
[327873716,1716570640681,-11822.26,0.0002493,9]
[327873717,1716570640691,-500.0,0.00024931,3]
[327873718,1716570640700,-500.0,0.00024931,3]
[327873719,1716570640715,-396.70966897,0.00024931,3]
[327873720,1716570640725,-500.0,0.00024931,3]
[327873721,1716570640734,-500.0,0.00024931,3]
[327873722,1716570640744,-500.0,0.00024931,3]
[327873723,1716570640753,-500.0,0.00024931,2]
[327873724,1716570640763,-500.0,0.00024931,3]
[327873725,1716570640775,-500.0,0.00024931,3]
[327873726,1716570640784,-500.0,0.00024931,3]
[327873727,1716570640794,-500.0,0.00024931,3]
[327873728,1716570640803,-500.0,0.00024931,3]
[327873729,1716570640812,-538.86,0.00024931,3]
[327873730,1716570640821,-500.0,0.00024931,3]
[327873731,1716570640831,-500.0,0.00024931,3]
[327873732,1716570640841,-500.0,0.00024931,3]
[327873733,1716570640851,-500.0,0.00024931,3]
[327873734,1716570640860,-690.75,0.00024931,3]
[327873735,1716570640871,-500.0,0.00024931,3]
[327873736,1716570640881,-500.0,0.00024931,3]
[327873737,1716570640891,-537.28,0.00024931,3]
[327873738,1716570640901,-500.0,0.00024931,3]
[327873739,1716570640911,-500.0,0.00024931,3]
[327873740,1716570640921,-500.0,0.00024931,3]
[327873741,1716570640930,-500.0,0.00024931,3]
[327873742,1716570640939,-500.0,0.00024931,3]
[327873743,1716570640949,-516.15,0.00024931,3]
[327873744,1716570640959,-500.0,0.00024931,3]
[327873745,1716570640968,-500.0,0.00024931,3]
[327873746,1716570640977,-658.3,0.00024931,3]
[327873747,1716570640987,-500.0,0.00024931,3]
[327873748,1716570640997,-500.0,0.00024931,3]
[327873749,1716570641006,-500.0,0.00024931,3]
[327873750,1716570641016,-500.0,0.00024931,3]
[327873751,1716570641025,-2496.15,0.00024931,3]
[327873752,1716570641034,-500.0,0.00024931,3]
[327873753,1716570641043,-500.0,0.00024931,3]
[327873754,1716570641053,-500.0,0.00024931,3]
[327873755,1716570641062,-500.0,0.00024931,3]
[327873756,1716570641072,-500.0,0.00024931,3]
[327873757,1716570641081,-697.43,0.00024931,3]
[327873758,1716570641091,-500.0,0.00024931,3]
[327873760,1716570641100,-3464.55,0.00024931,3]
[327873761,1716570641109,-500.0,0.00024931,3]
[327873762,1716570641119,-500.0,0.00024931,3]
[327873763,1716570641128,-626.15938359,0.00024931,3]
[327873764,1716570641138,-532.79,0.00024931,3]
[327873765,1716570641146,-500.0,0.00024931,3]